fUST/lending_fUST_20250713
["ID","MTS","AMOUNT","RATE_DAILY","PERIOD"]
[371687671,1752387039506,-460.0,0.00017152,2]
[371687672,1752387039515,-460.0,0.00017152,2]
[371687673,1752387039524,-468.16342656,0.00017152,2]
[371687674,1752387039533,-460.0,0.00017152,2]
[371687675,1752387039543,-460.0,0.00017152,2]
[371687677,1752387039552,-499.84241935,0.00017152,2]
[371687679,1752387039561,-619.33,0.00017152,2]
[371687680,1752387039572,-470.99375516,0.00017152,2]
[371687682,1752387039582,-600.55531265,0.00017152,2]
[371687684,1752387039591,-460.0,0.00017152,2]
[371687686,1752387039600,-1156.65,0.00017152,2]
[371687688,1752387039609,-466.4211985,0.00017152,2]
[371687690,1752387039621,-460.0,0.00017152,2]
[371687692,1752387039630,-460.0,0.00017152,2]
[371687694,1752387039640,-460.0,0.00017152,2]
[371687697,1752387039650,-460.0,0.00017152,2]
[371687700,1752387039662,-460.0,0.00017152,2]
[371687703,1752387039671,-460.0,0.00017152,2]
[371687706,1752387039680,-533.55,0.00017152,2]
[371687709,1752387039689,-460.0,0.00017152,2]
[371687712,1752387039699,-460.0,0.00017152,2]
[371687715,1752387039708,-470.51867877,0.00017152,2]
[371687718,1752387039717,-460.0,0.00017152,2]
[371687720,1752387039728,-2178.68,0.00017152,2]
[371687723,1752387039737,-596.96,0.00017152,2]
[371687726,1752387039746,-313.90619968,0.00017152,2]
[371687728,1752387039758,-524.66,0.00017152,2]
[371687730,1752387039767,-523.8988468,0.00017152,2]
[371687732,1752387039777,-460.0,0.00017152,2]
[371687734,1752387039787,-460.0,0.00017152,2]
[371687737,1752387039796,-460.0,0.00017152,2]
[371687739,1752387039805,-207.4605346,0.00017152,2]
[371687741,1752387039814,-460.0,0.00017153,2]
[371687743,1752387039823,-460.0,0.00017154,2]
[371687745,1752387039833,-460.0,0.00017154,2]
[371687747,1752387039842,-460.0,0.00017154,2]
[371687749,1752387039851,-460.0,0.00017154,2]
[371687751,1752387039861,-460.0,0.00017154,2]
[371687753,1752387039870,-836.09,0.00017154,2]
[371687755,1752387039879,-460.0,0.00017154,2]
[371687757,1752387039888,-1356.0,0.00017155,2]
[371687759,1752387039897,-151.0,0.00017155,2]
[371687761,1752387039906,-151.0,0.00017155,2]
[371687763,1752387039915,-151.0,0.00017155,2]
[371687765,1752387039924,-900.96,0.00017156,2]
[371687767,1752387039934,-151.0,0.00017157,2]
[371687769,1752387039943,-151.0,0.00017157,2]
[371687771,1752387039953,-151.0,0.00017157,2]
[371687773,1752387039963,-298.19771,0.00017166,2]
[371687775,1752387039973,-1356.0,0.00017182,2]
[371687777,1752387039981,-1356.0,0.0001721,2]
[371687779,1752387039990,-11909.66527288,0.0001721,2]
[371687781,1752387040000,-1005.97841678,0.00017221,2]
[371687783,1752387040010,-512.64927239,0.00017221,2]
[371687785,1752387040019,-1356.0,0.00017237,2]
[371687787,1752387040029,-298.19771,0.00017248,2]
[371687789,1752387040038,-1356.0,0.00017264,2]
[371687791,1752387040048,-1356.0,0.00017292,2]
[371687793,1752387040058,-1360.45188498,0.00017319,2]
[371687795,1752387040067,-298.19771,0.0001733,2]
[371687797,1752387040076,-298.19771,0.00017412,2]
[371687799,1752387040086,-1000.0,0.00017421,2]
[371687801,1752387040095,-1008.2189503,0.00017421,2]
[371687803,1752387040104,-1004.43436431,0.00017421,2]
[371687805,1752387040114,-1000.0,0.00017421,2]
[371687807,1752387040123,-551.55,0.00017424,2]
[371687809,1752387040133,-460.0,0.00017424,2]
[371687811,1752387040142,-1098.88,0.00017424,2]
[371687813,1752387040151,-460.0,0.00017424,2]
[371687815,1752387040162,-362.5241419,0.00017424,2]
[371687817,1752387040172,-952.97,0.00017424,2]
[371687819,1752387040181,-460.0,0.00017424,2]
[371687821,1752387040191,-460.0,0.00017425,2]
[371687822,1752387040200,-460.0,0.00017425,2]
[371687824,1752387040210,-460.0,0.00017425,2]
[371687827,1752387040219,-460.0,0.00017425,2]
[371687828,1752387040230,-900.96,0.00017425,2]
[371687830,1752387040240,-460.0,0.00017425,2]
[371687833,1752387040250,-460.0,0.00017425,2]
[371687834,1752387040259,-460.0,0.00017425,2]
[371687836,1752387040269,-460.0,0.00017425,2]
[371687838,1752387040278,-1491.82,0.00017425,2]
[371687840,1752387040288,-460.0,0.00017425,2]
[371687842,1752387040297,-460.0,0.00017425,2]
[371687845,1752387040308,-552.28,0.00017425,2]
[371687849,1752387040319,-1806.86,0.00017425,2]
[371687850,1752387040328,-460.0,0.00017425,2]
[371687852,1752387040337,-460.0,0.00017425,2]
[371687854,1752387040347,-494.51,0.00017425,2]
[371687869,1752387040470,-460.0,0.00017425,2]
[371687871,1752387040481,-460.0,0.00017425,2]
[371687873,1752387040490,-460.0,0.00017426,2]
[371687875,1752387040503,-460.0,0.00017426,2]
[371687877,1752387040513,-369.47235491,0.00017426,2]
[371687879,1752387040522,-460.0,0.00017426,2]
[371687881,1752387040532,-505.7,0.00017426,2]
[371687883,1752387040543,-460.0,0.00017426,2]
[371687885,1752387040552,-460.0,0.00017426,2]
[371687887,1752387040561,-460.0,0.00017426,2]
[371687889,1752387040572,-460.0,0.00017426,2]
[371687891,1752387040581,-460.0,0.00017426,2]
[371687893,1752387040593,-460.0,0.00017426,2]
[371687895,1752387040602,-460.0,0.00017426,2]
[371687897,1752387040611,-460.0,0.00017426,2]
[371687899,1752387040620,-460.0,0.00017426,2]
[371687901,1752387040630,-460.0,0.00017426,2]
[371687903,1752387040639,-247.6143253,0.00017426,2]
[371687905,1752387040648,-460.0,0.00017426,2]
[371687907,1752387040658,-469.10647165,0.00017426,2]
[371687909,1752387040667,-460.0,0.00017426,2]
[371687911,1752387040677,-619.33,0.00017426,2]
[371687913,1752387040687,-460.0,0.00017426,2]
[371687915,1752387040696,-1156.65,0.00017426,2]
[371687917,1752387040706,-460.0,0.00017426,2]
[371687919,1752387040715,-460.0,0.00017426,2]
[371687921,1752387040724,-460.0,0.00017426,2]
[371687923,1752387040733,-571.5,0.00017426,2]
[371687925,1752387040743,-460.0,0.00017426,2]
[371687927,1752387040752,-460.0,0.00017426,2]
[371687929,1752387040762,-533.55,0.00017426,2]
[371687931,1752387040772,-464.69430109,0.00017426,2]
[371687933,1752387040781,-460.0,0.00017426,2]
[371687935,1752387040791,-460.0,0.00017426,2]
[371687937,1752387040800,-2178.68,0.00017426,2]
[371687939,1752387040810,-596.96,0.00017426,2]
[371687941,1752387040820,-524.66,0.00017426,2]
[371687943,1752387040830,-460.0,0.00017426,2]
[371687945,1752387040840,-460.0,0.00017426,2]
[371687947,1752387040850,-460.0,0.00017427,2]
[371687949,1752387040859,-151.0,0.00017427,2]
[371687951,1752387040869,-151.0,0.00017427,2]
[371687953,1752387040878,-465.3774131,0.00017428,2]
[371687955,1752387040888,-460.0,0.00017428,2]
[371687957,1752387040897,-460.0,0.00017428,2]
[371687959,1752387040907,-460.0,0.00017428,2]
[371687961,1752387040916,-836.09,0.00017428,2]
[371687963,1752387040926,-460.0,0.00017428,2]
[371687965,1752387040935,-151.0,0.00017429,2]
[371687968,1752387040944,-151.0,0.00017429,2]
[371687970,1752387040954,-196.869455,0.00017429,2]
[371687971,1752387040962,-298.19771,0.00017495,2]
[371687973,1752387040973,-11909.66527288,0.00017521,2]
[371687976,1752387040983,-209.778707,0.00017521,2]
[371687977,1752387040992,-151.0,0.00017521,2]
[371687979,1752387041001,-151.601864,0.00017521,2]
[371687981,1752387041011,-298.19771,0.00017577,2]
[371687983,1752387041020,-900.96,0.000176,2]
[371687986,1752387041030,-298.19771,0.00017659,2]
[371687987,1752387041039,-551.55,0.00017698,2]
[371687990,1752387041049,-460.0,0.00017698,2]
[371687991,1752387041059,-1098.88,0.00017698,2]
[371687994,1752387041068,-460.0,0.00017698,2]
[371687996,1752387041078,-952.97,0.00017698,2]
[371687997,1752387041087,-460.0,0.00017698,2]
[371687999,1752387041097,-460.0,0.00017699,2]
[371688002,1752387041106,-476.14974326,0.00017699,2]
[371688003,1752387041115,-460.0,0.00017699,2]
[371688006,1752387041125,-460.0,0.00017699,2]
[371688008,1752387041134,-460.0,0.00017699,2]
[371688009,1752387041144,-460.0,0.00017699,2]
[371688012,1752387041153,-460.0,0.00017699,2]
[371688013,1752387041162,-460.0,0.00017699,2]
[371688016,1752387041171,-1491.82,0.00017699,2]
[371688017,1752387041181,-460.0,0.00017699,2]
[371688020,1752387041191,-460.0,0.00017699,2]
[371688022,1752387041201,-552.28,0.00017699,2]
[371688024,1752387041210,-1806.86,0.00017699,2]
[371688026,1752387041220,-460.0,0.00017699,2]
[371688028,1752387041230,-460.0,0.00017699,2]
[371688029,1752387041239,-494.51,0.00017699,2]
[371688032,1752387041249,-460.0,0.00017699,2]
[371688033,1752387041258,-460.0,0.00017699,2]
[371688036,1752387041276,-192.9,0.000177,2]
[371688039,1752387041289,-436.54,0.000177,2]
[371688041,1752387041299,-460.0,0.000177,2]
[371688043,1752387041308,-505.7,0.000177,2]
[371688045,1752387041318,-460.0,0.000177,2]
[371688047,1752387041327,-419.37008146,0.000177,2]
[371688049,1752387041337,-460.0,0.000177,2]
[371688051,1752387041347,-460.0,0.000177,2]
[371688053,1752387041356,-460.0,0.000177,2]
[371688055,1752387041365,-460.0,0.000177,2]
[371688057,1752387041375,-460.0,0.000177,2]
[371688059,1752387041385,-460.0,0.000177,2]
[371688061,1752387041395,-460.0,0.000177,2]
[371688063,1752387041404,-460.0,0.000177,2]
[371688065,1752387041414,-619.33,0.000177,2]
[371688067,1752387041424,-900.96,0.000177,2]
[371688069,1752387041434,-1156.65,0.000177,2]
[371688071,1752387041444,-460.0,0.000177,2]
[371688074,1752387041455,-460.0,0.000177,2]
[371688076,1752387041464,-460.0,0.000177,2]
[371688078,1752387041475,-460.0,0.000177,2]
[371688080,1752387041485,-533.55,0.000177,2]
[371688082,1752387041497,-460.0,0.000177,2]
[371688084,1752387041509,-460.0,0.000177,2]
[371688086,1752387041519,-2178.68,0.000177,2]
[371688088,1752387041529,-596.96,0.000177,2]
[371688090,1752387041539,-524.66,0.000177,2]
[371688092,1752387041550,-460.0,0.000177,2]
[371688094,1752387041559,-460.0,0.000177,2]
[371688096,1752387041569,-397.62,0.00017701,2]
[371688098,1752387041578,-460.0,0.00017702,2]
[371688100,1752387041589,-460.0,0.00017702,2]
[371688102,1752387041599,-460.0,0.00017702,2]
[371688104,1752387041609,-836.09,0.00017702,2]
[371688106,1752387041619,-151.259647,0.00017702,2]
[371688108,1752387041628,-151.0,0.00017702,2]
[371688110,1752387041638,-151.0,0.00017705,2]
[371688112,1752387041647,-442.94648861,0.00017735,2]
[371688114,1752387041657,-298.19771,0.00017741,2]
[371688116,1752387041666,-151.0,0.000178,2]
[371688118,1752387041676,-298.19771,0.00017823,2]
[371688120,1752387041686,-11909.66527288,0.00017831,2]
[371688122,1752387041696,-505.7,0.00017899,2]
[371688124,1752387041706,-151.0,0.00017899,2]
[371688126,1752387041716,-298.19771,0.00017905,2]
[371688128,1752387041726,-826.44,0.00017965,3]
[371688130,1752387041735,-413.22,0.00017965,3]
[371688132,1752387041745,-1507.57266618,0.00017968,2]
[371688134,1752387041755,-1000.0,0.00017968,2]
[371688136,1752387041764,-551.55,0.00017972,2]
[371688138,1752387041773,-460.0,0.00017972,2]
[371688140,1752387041782,-1098.88,0.00017972,2]
[371688142,1752387041792,-460.0,0.00017972,2]
[371688144,1752387041802,-952.97,0.00017972,2]
[371688146,1752387041811,-460.0,0.00017973,2]
[371688148,1752387041821,-460.0,0.00017973,2]
[371688150,1752387041830,-405.17,0.00017973,2]
[371688152,1752387041839,-900.96,0.00017973,2]
[371688154,1752387041849,-460.0,0.00017973,2]
[371688156,1752387041858,-460.0,0.00017973,2]
[371688158,1752387041868,-460.0,0.00017973,2]
[371688160,1752387041877,-460.0,0.00017973,2]
[371688162,1752387041887,-1491.82,0.00017973,2]
[371688165,1752387041900,-460.0,0.00017973,2]
[371688167,1752387041910,-460.0,0.00017973,2]
[371688169,1752387041919,-552.28,0.00017973,2]
[371688170,1752387041928,-1806.86,0.00017973,2]
[371688173,1752387041938,-460.0,0.00017973,2]
[371688175,1752387041947,-233.54156638,0.00017973,2]
[371688177,1752387041957,-494.51,0.00017973,2]
[371688179,1752387041966,-460.0,0.00017973,2]
[371688181,1752387041978,-460.0,0.00017973,2]
[371688183,1752387041988,-460.0,0.00017974,2]
[371688185,1752387041997,-460.0,0.00017974,2]
[371688187,1752387042007,-320.0,0.00017974,2]
[371688189,1752387042017,-158.36,0.00017974,2]
[371688191,1752387042026,-460.0,0.00017974,2]
[371688193,1752387042035,-460.0,0.00017974,2]
[371688195,1752387042044,-460.0,0.00017974,2]
[371688197,1752387042054,-365.19644651,0.00017974,2]
[371688199,1752387042064,-619.33,0.00017974,2]
[371688201,1752387042073,-1156.65,0.00017974,2]
[371688203,1752387042083,-460.0,0.00017974,2]
[371688205,1752387042094,-460.0,0.00017974,2]
[371688207,1752387042104,-460.0,0.00017974,2]
[371688209,1752387042114,-460.0,0.00017974,2]
[371688211,1752387042123,-533.55,0.00017974,2]
[371688214,1752387042133,-220.50658624,0.00017974,2]
[371688216,1752387042143,-2178.68,0.00017974,2]
[371688218,1752387042153,-596.96,0.00017974,2]
[371688220,1752387042163,-524.66,0.00017974,2]
[371688222,1752387042174,-460.0,0.00017974,2]
[371688224,1752387042184,-483.13,0.00017974,2]
[371688225,1752387042196,-171.008502,0.00017975,2]
[371688228,1752387042205,-177.329774,0.00017975,2]
[371688229,1752387042215,-177.329774,0.00017975,2]
[371688232,1752387042224,-151.0,0.00017975,2]
[371688234,1752387042234,-460.0,0.00017976,2]
[371688236,1752387042243,-460.0,0.00017976,2]
[371688238,1752387042253,-399.57462362,0.00017976,2]
[371688240,1752387042262,-836.09,0.00017976,2]
[371688242,1752387042271,-298.19771,0.00017987,2]
[371688243,1752387042280,-900.96,0.00018049,2]
[371688246,1752387042290,-151.0,0.00018049,2]
[371688247,1752387042300,-25000.0,0.00018049,2]
[371688250,1752387042310,-151.0,0.00018049,2]
[371688252,1752387042320,-151.0,0.00018049,2]
[371688253,1752387042330,-151.0,0.00018049,2]
[371688256,1752387042340,-151.0,0.00018049,2]
[371688258,1752387042351,-151.0,0.00018049,2]
[371688260,1752387042361,-298.19771,0.0001807,2]
[371688262,1752387042371,-151.0,0.00018141,2]
[371688264,1752387042380,-11909.66527288,0.00018141,2]
[371688266,1752387042390,-298.19771,0.00018152,2]
[371688268,1752387042400,-505.7,0.00018174,2]
[371688270,1752387042409,-151.0,0.000182,2]
[371688272,1752387042419,-298.19771,0.00018234,2]
[371688274,1752387042428,-900.96,0.00018238,2]
[371688276,1752387042438,-551.55,0.00018246,2]
[371688278,1752387042448,-460.0,0.00018246,2]
[371688280,1752387042459,-1098.88,0.00018246,2]
[371688282,1752387042469,-460.0,0.00018246,2]
[371688284,1752387042480,-952.97,0.00018246,2]
[371688286,1752387042490,-460.0,0.00018247,2]
[371688289,1752387042504,-460.0,0.00018247,2]
[371688291,1752387042514,-460.0,0.00018247,2]
[371688293,1752387042524,-206.06,0.00018247,2]
[371688295,1752387042534,-460.0,0.00018247,2]
[371688297,1752387042546,-460.0,0.00018247,2]
[371688300,1752387042555,-1491.82,0.00018247,2]
[371688303,1752387042565,-460.0,0.00018247,2]
[371688305,1752387042575,-460.0,0.00018247,2]
[371688307,1752387042586,-552.28,0.00018247,2]
[371688309,1752387042596,-1806.86,0.00018247,2]
[371688311,1752387042606,-460.0,0.00018247,2]
[371688313,1752387042616,-494.51,0.00018247,2]
[371688315,1752387042626,-460.0,0.00018247,2]
[371688317,1752387042644,-460.0,0.00018247,2]
[371688319,1752387042654,-505.7,0.00018248,2]
[371688321,1752387042664,-180.01,0.00018248,2]
[371688323,1752387042674,-460.0,0.00018248,2]
[371688325,1752387042683,-460.0,0.00018248,2]
[371688327,1752387042693,-460.0,0.00018248,2]
[371688330,1752387042703,-619.33,0.00018248,2]
[371688333,1752387042713,-1156.65,0.00018248,2]
[371688337,1752387042724,-460.0,0.00018248,2]
[371688339,1752387042734,-460.0,0.00018248,2]
[371688340,1752387042743,-460.0,0.00018248,2]
[371688344,1752387042753,-460.0,0.00018248,2]
[371688347,1752387042763,-533.55,0.00018248,2]
[371688349,1752387042773,-2178.68,0.00018248,2]
[371688351,1752387042782,-596.96,0.00018248,2]
[371688353,1752387042792,-524.66,0.00018248,2]
[371688355,1752387042802,-460.0,0.00018248,2]
[371688357,1752387042812,-460.0,0.0001825,2]
[371688359,1752387042822,-568.76,0.0001825,2]
[371688361,1752387042831,-836.09,0.0001825,2]
[371688363,1752387042841,-298.19771,0.00018316,2]
[371688365,1752387042851,-428.60372731,0.0001838,2]
[371688367,1752387042861,-298.19771,0.00018398,2]
[371688369,1752387042870,-505.7,0.00018451,2]
[371688371,1752387042880,-11909.66527288,0.00018452,2]
[371688373,1752387042891,-298.19771,0.0001848,2]
[371688375,1752387042900,-551.55,0.0001852,2]
[371688377,1752387042910,-460.0,0.0001852,2]
[371688379,1752387042920,-1098.88,0.0001852,2]
[371688381,1752387042930,-460.0,0.0001852,2]
[371688383,1752387042939,-952.97,0.0001852,2]
[371688385,1752387042949,-460.0,0.00018521,2]
[371688387,1752387042958,-460.0,0.00018521,2]
[371688389,1752387042968,-900.96,0.00018521,2]
[371688391,1752387042978,-900.96,0.00018521,2]
[371688407,1752387043116,-900.96,0.00018521,2]
[371688409,1752387043127,-900.96,0.00018521,2]
[371688412,1752387043137,-900.96,0.00018521,2]
[371688414,1752387043147,-460.0,0.00018521,2]
[371688416,1752387043156,-460.0,0.00018521,2]
[371688418,1752387043165,-158.64,0.00018521,2]
[371688420,1752387043174,-1491.82,0.00018521,2]
[371688422,1752387043183,-460.0,0.00018521,2]
[371688424,1752387043193,-552.28,0.00018521,2]
[371688426,1752387043202,-460.0,0.00018521,2]
[371688428,1752387043212,-1806.86,0.00018521,2]
[371688430,1752387043221,-460.0,0.00018521,2]
[371688433,1752387043241,-494.51,0.00018521,2]
[371688435,1752387043251,-460.0,0.00018521,2]
[371688437,1752387043261,-460.0,0.00018521,2]
[371688439,1752387043271,-460.0,0.00018522,2]
[371688441,1752387043281,-151.0,0.00018522,2]
[371688443,1752387043291,-460.0,0.00018522,2]
[371688445,1752387043301,-460.0,0.00018522,2]
[371688447,1752387043312,-619.33,0.00018522,2]
[371688449,1752387043323,-1156.65,0.00018522,2]
[371688451,1752387043332,-460.0,0.00018522,2]
[371688453,1752387043343,-460.0,0.00018522,2]
[371688455,1752387043352,-460.0,0.00018522,2]
[371688458,1752387043363,-460.0,0.00018522,2]
[371688460,1752387043373,-533.55,0.00018522,2]
[371688462,1752387043383,-2178.68,0.00018522,2]
[371688464,1752387043394,-596.96,0.00018522,2]
[371688466,1752387043404,-524.66,0.00018522,2]
[371688468,1752387043414,-460.0,0.00018522,2]
[371688470,1752387043423,-470.14361108,0.00018524,2]
[371688472,1752387043434,-836.09,0.00018524,2]
[371688474,1752387043444,-177.329774,0.00018524,2]
[371688476,1752387043454,-177.329774,0.00018524,2]
[371688478,1752387043465,-298.19771,0.00018562,2]
[371688480,1752387043476,-230.68503973,0.00018598,2]
[371688482,1752387043486,-838.53376533,0.00018598,2]
[371688484,1752387043497,-160.0,0.00018598,2]
[371688486,1752387043508,-215.42595214,0.00018598,2]
[371688487,1752387043518,-151.0,0.000186,2]
[371688488,1752387043528,-776.35948408,0.00018636,2]
[371688489,1752387043539,-298.19771,0.00018645,2]
[371688490,1752387043549,-491.478123,0.00018689,2]
[371688491,1752387043559,-298.19771,0.00018727,2]
[371688492,1752387043570,-505.7,0.00018727,2]
[371688493,1752387043580,-501.04929692,0.00018742,2]
[371688494,1752387043590,-11909.66527288,0.00018762,2]
[371688495,1752387043600,-551.55,0.00018794,2]
[371688496,1752387043610,-460.0,0.00018794,2]
[371688497,1752387043620,-1098.88,0.00018794,2]
[371688498,1752387043630,-460.0,0.00018794,2]
[371688499,1752387043640,-952.97,0.00018794,2]
[371688500,1752387043650,-460.0,0.00018795,2]
[371688501,1752387043661,-460.0,0.00018795,2]
[371688502,1752387043671,-460.0,0.00018795,2]
[371688504,1752387043685,-460.0,0.00018795,2]
[371688506,1752387043695,-1491.82,0.00018795,2]
[371688508,1752387043704,-460.0,0.00018795,2]
[371688511,1752387043715,-552.28,0.00018795,2]
[371688512,1752387043725,-460.0,0.00018795,2]
[371688514,1752387043735,-1806.86,0.00018795,2]
[371688517,1752387043746,-273.30522729,0.00018795,2]
[371688519,1752387043755,-494.51,0.00018795,2]
[371688520,1752387043773,-460.0,0.00018795,2]
[371688523,1752387043792,-460.0,0.00018795,2]
[371688525,1752387043803,-460.0,0.00018796,2]
[371688526,1752387043814,-394.72,0.00018796,2]
[371688528,1752387043826,-460.0,0.00018796,2]
[371688531,1752387043837,-619.33,0.00018796,2]
[371688533,1752387043847,-1156.65,0.00018796,2]
[371688534,1752387043856,-460.0,0.00018796,2]
[371688537,1752387043866,-460.0,0.00018796,2]
[371688539,1752387043876,-460.0,0.00018796,2]
[371688541,1752387043887,-460.0,0.00018796,2]
[371688543,1752387043896,-533.55,0.00018796,2]
[371688545,1752387043906,-2178.68,0.00018796,2]
[371688547,1752387043917,-596.96,0.00018796,2]
[371688549,1752387043927,-524.66,0.00018796,2]
[371688551,1752387043936,-151.0,0.00018796,2]
[371688553,1752387043946,-460.0,0.00018796,2]
[371688555,1752387043956,-505.7,0.00018797,2]
[371688557,1752387043965,-836.09,0.00018798,2]
[371688559,1752387043975,-1296.22619267,0.00018926,2]
[371688561,1752387043985,-2189.44251424,0.00018926,2]
[371688563,1752387043995,-378.39502265,0.00018926,2]
[371688565,1752387044005,-442.94648861,0.00018968,2]
[371688567,1752387044015,-151.0,0.00019,2]
[371688569,1752387044025,-151.0,0.00019,2]
[371688571,1752387044034,-389885.30914992,0.00019002,2]
[371688572,1752387044054,-448.95428223,0.00019002,2]
[371688573,1752387044066,-500.0,0.00019002,2]
[371688574,1752387044077,-2904.74854359,0.00019002,2]
[371688575,1752387044089,-3678.58511886,0.00019002,2]
[371688576,1752387044101,-1956.40167637,0.00019002,2]
[371688580,1752387044256,-460.0,0.00016602,2]
[371688582,1752387044267,-460.0,0.00016603,2]
[371688584,1752387044276,-460.0,0.00016876,2]
[371688586,1752387044286,-23725.85431547,0.00019002,2]
[371688591,1752387044323,-460.0,0.00016604,2]
[371688593,1752387044333,-904.0,0.00019002,2]
[371688613,1752387046893,-460.0,0.00016878,2]
[371688614,1752387046903,-460.0,0.00017152,2]
[371688615,1752387046912,-5198.64907723,0.00019002,2]
[371688616,1752387046927,-10736.96020976,0.00019002,2]
[371688617,1752387143428,209.09,0.00022014,30]
[371688618,1752387205406,209.09,0.00021983,30]
[371688619,1752387233905,209.09,0.00021982,30]
[371688620,1752387256073,154.849507,0.00022986,30]
[371688621,1752387265314,230.0,0.00021978,30]
[371688622,1752387295930,230.0,0.00021983,30]
[371688623,1752387448057,3319.49207968,0.000176,6]
[371688624,1752387465905,353.14472632,0.000176,6]
[371688625,1752387585251,24900.0,0.00015602,2]
[371688626,1752387603284,919.96846118,0.00016,2]
[371688627,1752387629628,334.55,0.00017375,7]
[371688628,1752387631660,223.03,0.00021261,30]
[371688629,1752387632385,223.03,0.00021352,30]
[371688630,1752387633842,1306.4748959,0.00015602,2]
[371688640,1752388119515,150.99999973,0.00025235,120]
[371688706,1752388232510,-166.0,0.00016438,2]
[371688708,1752388232520,-300.0,0.00016598,2]
[371688710,1752388232530,-1200.0,0.00016598,2]
[371688712,1752388232540,-460.0,0.00016599,2]
[371688714,1752388232550,-503.25019544,0.00016599,2]
[371688716,1752388232560,-460.87764905,0.00016599,2]
[371688718,1752388232570,-460.0,0.00016599,2]
[371688720,1752388232582,-460.0,0.00016599,2]
[371688722,1752388232592,-462.64411128,0.00016599,2]
[371688724,1752388232601,-460.0,0.00016599,2]
[371688726,1752388232612,-460.0,0.00016599,2]
[371688728,1752388232621,-460.0,0.00016599,2]
[371688731,1752388232632,-460.0,0.00016599,2]
[371688734,1752388232642,-460.0,0.00016599,2]
[371688736,1752388232651,-460.0,0.00016599,2]
[371688739,1752388232661,-809.52,0.00016599,2]
[371688741,1752388232670,-2471.46,0.00016599,2]
[371688743,1752388232680,-460.0,0.00016599,2]
[371688745,1752388232690,-478.85283905,0.00016599,2]
[371688747,1752388232700,-462.31573989,0.00016599,2]
[371688750,1752388232709,-460.0,0.00016599,2]
[371688753,1752388232719,-460.0,0.00016599,2]
[371688756,1752388232729,-460.0,0.00016599,2]
[371688759,1752388232739,-871.59,0.00016599,2]
[371688762,1752388232748,-460.0,0.00016599,2]
[371688765,1752388232758,-1436.67,0.00016599,2]
[371688768,1752388232767,-460.0,0.00016599,2]
[371688771,1752388232777,-460.0,0.00016599,2]
[371688774,1752388232787,-175.71760109,0.00016599,2]
[371688777,1752388232796,-460.0,0.00016599,2]
[371688780,1752388232806,-941.99,0.00016599,2]
[371688783,1752388232816,-795.45,0.00016599,2]
[371688785,1752388232826,-460.0,0.00016599,2]
[371688788,1752388232836,-460.0,0.00016599,2]
[371688790,1752388232845,-460.0,0.00016599,2]
[371688792,1752388232855,-460.0,0.00016599,2]
[371688794,1752388232865,-160.0,0.00016599,2]